fUSD/lending_fUSD_20250511
["ID","MTS","AMOUNT","RATE_DAILY","PERIOD"]
[360687775,1746929451169,-436.82,0.00019888,2]
[360687776,1746929451178,-400.0,0.00019888,2]
[360687777,1746929451189,-400.0,0.00019888,2]
[360687778,1746929451198,-418.40440769,0.00019888,2]
[360687779,1746929451208,-400.0,0.00019888,2]
[360687780,1746929451217,-3740.71,0.00019888,2]
[360687781,1746929451227,-553.01,0.00019888,2]
[360687782,1746929451237,-408.25305521,0.00019888,2]
[360687783,1746929451247,-400.0,0.00019888,2]
[360687784,1746929451256,-359.8305096,0.00019888,2]
[360687785,1746929451266,-151.0,0.00019889,2]
[360687786,1746929451275,-153.773973,0.00019889,2]
[360687787,1746929451285,-206670.1531,0.00019889,2]
[360687788,1746929451294,-36300.5207,0.00019889,2]
[360687789,1746929451304,-400.0,0.0001989,2]
[360687790,1746929451314,-400.0,0.0001989,2]
[360687791,1746929451323,-400.0,0.0001989,2]
[360687792,1746929451332,-371.7518292,0.0001989,2]
[360687793,1746929451341,-255.83181364,0.0001989,2]
[360687794,1746929451351,-400.0,0.0001989,2]
[360687795,1746929451360,-400.0,0.0001989,2]
[360687796,1746929451369,-455.54,0.0001989,2]
[360687797,1746929451379,-400.0,0.0001989,2]
[360687798,1746929451388,-400.0,0.0001989,2]
[360687799,1746929451397,-400.0,0.0001989,2]
[360687800,1746929451407,-400.0,0.0001989,2]
[360687801,1746929451416,-400.0,0.0001989,2]
[360687802,1746929451425,-400.0,0.0001989,2]
[360687803,1746929451436,-400.0,0.0001989,2]
[360687804,1746929451446,-400.0,0.0001989,2]
[360687805,1746929451455,-400.0,0.0001989,2]
[360687806,1746929451464,-400.0,0.0001989,2]
[360687807,1746929451474,-400.0,0.0001989,2]
[360687808,1746929451484,-655.17,0.0001989,2]
[360687809,1746929451495,-2862.314891,0.0001989,2]
[360687810,1746929451505,-436.82,0.0001989,2]
[360687811,1746929451514,-359.8305096,0.00019891,2]
[360687812,1746929451523,-12500.0,0.00019891,2]
[360687813,1746929451534,-359.8305096,0.00019893,2]
[360687814,1746929451543,-225.0,0.00019895,2]
[360687815,1746929451552,-359.8305096,0.00019895,2]
[360687816,1746929451562,-169.80763347,0.00019896,2]
[360687817,1746929451572,-359.8305096,0.00019898,2]
[360687818,1746929451583,-179.79106153,0.00019898,2]
[360687819,1746929451592,-154.3175913,0.00019898,2]
[360687820,1746929451601,-179.79106153,0.00019899,2]
[360687821,1746929451611,-321.08744799,0.00019899,2]
[360687822,1746929451620,-400.0,0.00019899,2]
[360687823,1746929451629,-400.0,0.00019899,2]
[360687824,1746929451638,-400.0,0.00019899,2]
[360687825,1746929451648,-179.79106153,0.000199,2]
[360687826,1746929451657,-1255.263,0.000199,2]
[360687827,1746929451667,-12500.0,0.000199,2]
[360687828,1746929451676,-5800.0,0.000199,2]
[360687829,1746929451688,-1524.44508983,0.000199,2]
[360687830,1746929451697,-359.8305096,0.000199,2]
[360687831,1746929451707,-203.72522996,0.000199,3]
[360687832,1746929451716,-768.51492435,0.000199,2]
[360687833,1746929451725,-346.4738371,0.000199,2]
[360687834,1746929451734,-3892.56464104,0.000199,2]
[360687835,1746929451743,-3273.39148594,0.000199,2]
[360687836,1746929451752,-500.0,0.00019918,2]
[360687837,1746929451762,-4683.40585127,0.00019919,2]
[360687838,1746929451771,-199.20496004,0.00019943,2]
[360687839,1746929451781,-1033.0225286,0.00019962,2]
[360687840,1746929451790,-400.0,0.00019972,2]
[360687841,1746929451799,-400.0,0.00019972,2]
[360687842,1746929451809,-532.89559453,0.00019972,2]
[360687843,1746929451818,-400.0,0.00019972,2]
[360687844,1746929451828,-499.54,0.00019972,2]
[360687845,1746929451837,-400.0,0.00019972,2]
[360687846,1746929451847,-400.0,0.00019972,2]
[360687847,1746929451856,-323.94728056,0.00019972,2]
[360687848,1746929451866,-930.29,0.00019972,2]
[360687849,1746929451875,-400.0,0.00019972,2]
[360687850,1746929451885,-459.74,0.00019972,2]
[360687851,1746929451938,-481.41,0.00019972,2]
[360687852,1746929451948,-400.0,0.00019972,2]
[360687853,1746929451959,-400.0,0.00019972,2]
[360687854,1746929451969,-469.57,0.00019972,2]
[360687855,1746929451979,-400.0,0.00019972,2]
[360687856,1746929451988,-497.73,0.00019972,2]
[360687857,1746929451997,-400.0,0.00019972,2]
[360687858,1746929452006,-400.0,0.00019972,2]
[360687859,1746929452016,-542.69,0.00019972,2]
[360687860,1746929452026,-500.0,0.00019973,2]
[360687861,1746929452035,-500.84969207,0.00019973,2]
[360687862,1746929452044,-551.36387212,0.00019973,2]
[360687863,1746929452054,-500.0,0.00019973,2]
[360687864,1746929452063,-500.51639964,0.00019973,2]
[360687865,1746929452073,-500.83977743,0.00019973,2]
[360687866,1746929452082,-500.75787737,0.00019973,2]
[360687867,1746929452091,-501.69559915,0.00019973,2]
[360687868,1746929452101,-491.09197973,0.00019973,2]
[360687869,1746929452111,-636.50749756,0.00019973,2]
[360687870,1746929452120,-508.56963111,0.00019973,2]
[360687871,1746929452130,-532.89615849,0.00019973,2]
[360687872,1746929452140,-300.39888879,0.00019973,2]
[360687873,1746929452150,-500.0,0.00019973,2]
[360687874,1746929452160,-500.0,0.00019973,2]
[360687875,1746929452170,-502.75575802,0.00019973,2]
[360687876,1746929452181,-500.0,0.00019973,2]
[360687877,1746929452191,-160.61335937,0.00019973,2]
[360687878,1746929452200,-500.73932483,0.00019973,2]
[360687879,1746929452210,-500.0,0.00019973,2]
[360687880,1746929452219,-501.89537264,0.00019973,2]
[360687881,1746929452229,-500.0,0.00019973,2]
[360687882,1746929452238,-160.71807893,0.00019973,2]
[360687883,1746929452248,-500.81934901,0.00019973,2]
[360687884,1746929452258,-500.0,0.00019973,2]
[360687885,1746929452267,-153.77042958,0.00019973,2]
[360687886,1746929452276,-150.0,0.00019973,2]
[360687887,1746929452286,-150.0,0.00019973,2]
[360687888,1746929452295,-151.08754786,0.00019973,2]
[360687889,1746929452304,-500.0,0.00019973,2]
[360687890,1746929452314,-155.23085493,0.00019973,2]
[360687891,1746929452324,-234.27220039,0.00019976,2]
[360687892,1746929452334,-400.0,0.00019984,2]
[360687893,1746929452343,-400.0,0.00019984,2]
[360687894,1746929452352,-400.0,0.00019984,2]
[360687895,1746929452362,-830.57,0.00019984,2]
[360687896,1746929452371,-400.0,0.00019984,2]
[360687897,1746929452381,-291.39676073,0.00019984,2]
[360687898,1746929452391,-400.0,0.00019984,2]
[360687899,1746929452400,-400.0,0.00019984,2]
[360687900,1746929452410,-592.98,0.00019984,2]
[360687901,1746929452419,-400.0,0.00019984,2]
[360687902,1746929452429,-400.0,0.00019984,2]
[360687903,1746929452442,-553.01,0.00019984,2]
[360687904,1746929452454,-167.44216735,0.00019985,2]
[360687905,1746929452465,-400.0,0.00019985,2]
[360687906,1746929452476,-400.0,0.00019985,2]
[360687907,1746929452489,-400.0,0.00019985,2]
[360687908,1746929452499,-400.0,0.00019985,2]
[360687909,1746929452509,-400.0,0.00019985,2]
[360687910,1746929452518,-400.0,0.00019985,2]
[360687911,1746929452528,-400.0,0.00019985,2]
[360687912,1746929452540,-400.0,0.00019985,2]
[360687913,1746929452550,-479.64603164,0.00019985,2]
[360687914,1746929452561,-492.36,0.00019985,2]
[360687915,1746929452571,-408.07248678,0.00019985,2]
[360687916,1746929452581,-400.0,0.00019985,2]
[360687917,1746929452592,-400.0,0.00019985,2]
[360687918,1746929452602,-400.0,0.00019985,2]
[360687919,1746929452612,-400.0,0.00019985,2]
[360687920,1746929452623,-400.0,0.00019985,2]
[360687921,1746929452633,-461.29285508,0.00019985,2]
[360687922,1746929452643,-400.0,0.00019985,2]
[360687923,1746929452652,-400.0,0.00019985,2]
[360687924,1746929452662,-411.84416576,0.00019985,2]
[360687925,1746929452671,-414.62912473,0.00019985,2]
[360687926,1746929452682,-400.0,0.00019985,2]
[360687927,1746929452691,-400.0,0.00019985,2]
[360687928,1746929452701,-411.20400341,0.00019985,2]
[360687929,1746929452710,-400.0,0.00019985,2]
[360687930,1746929452721,-204.61706954,0.00019985,2]
[360687931,1746929452730,-400.0,0.00019985,2]
[360687932,1746929452740,-326.64392026,0.00019985,2]
[360687933,1746929452749,-221.40929516,0.00019985,2]
[360687934,1746929452759,-400.0,0.00019985,2]
[360687935,1746929452768,-511.87235503,0.00019985,2]
[360687936,1746929452778,-400.0,0.00019985,2]
[360687937,1746929452787,-400.0,0.00019985,2]
[360687938,1746929452796,-400.0,0.00019985,2]
[360687939,1746929452806,-400.0,0.00019985,2]
[360687940,1746929452815,-400.0,0.00019985,2]
[360687941,1746929452824,-340.69326932,0.00019985,2]
[360687942,1746929452834,-378.21046081,0.00019985,2]
[360687943,1746929452843,-483.64067475,0.00019985,2]
[360687944,1746929452853,-400.0,0.00019985,2]
[360687945,1746929452863,-400.0,0.00019985,2]
[360687946,1746929452872,-400.0,0.00019985,2]
[360687947,1746929452882,-429.87757787,0.00019985,2]
[360687948,1746929452892,-488.8970178,0.00019985,2]
[360687949,1746929452902,-400.0,0.00019985,2]
[360687950,1746929452911,-400.0,0.00019985,2]
[360687951,1746929452920,-400.0,0.00019985,2]
[360687952,1746929452932,-400.0,0.00019985,2]
[360687953,1746929452941,-400.0,0.00019985,2]
[360687954,1746929452950,-400.0,0.00019985,2]
[360687955,1746929452959,-400.0,0.00019985,2]
[360687956,1746929452969,-400.0,0.00019985,2]
[360687957,1746929452978,-400.0,0.00019985,2]
[360687958,1746929452987,-400.0,0.00019985,2]
[360687959,1746929452997,-400.0,0.00019985,2]
[360687960,1746929453007,-400.0,0.00019985,2]
[360687961,1746929453016,-409.8625109,0.00019985,2]
[360687962,1746929453026,-400.0,0.00019985,2]
[360687963,1746929453035,-456.22840369,0.00019985,2]
[360687964,1746929453045,-400.0,0.00019985,2]
[360687965,1746929453054,-400.0,0.00019985,2]
[360687966,1746929453063,-413.33944194,0.00019985,2]
[360687967,1746929453073,-400.0,0.00019985,2]
[360687968,1746929453082,-400.0,0.00019985,2]
[360687969,1746929453091,-349.41319124,0.00019985,2]
[360687970,1746929453100,-400.0,0.00019985,2]
[360687971,1746929453110,-400.0,0.00019985,2]
[360687972,1746929453119,-400.0,0.00019985,2]
[360687973,1746929453129,-400.0,0.00019985,2]
[360687974,1746929453138,-419.98221898,0.00019985,2]
[360687975,1746929453147,-432.91,0.00019985,2]
[360687976,1746929453158,-400.0,0.00019985,2]
[360687977,1746929453168,-179.12953106,0.00019985,2]
[360687978,1746929453178,-407.5052827,0.00019985,2]
[360687979,1746929453189,-407.41567438,0.00019985,2]
[360687980,1746929453199,-400.0,0.00019985,2]
[360687981,1746929453208,-405.22331827,0.00019985,2]
[360687982,1746929453218,-232.9529315,0.00019985,2]
[360687983,1746929453227,-400.0,0.00019985,2]
[360687984,1746929453236,-430.29182139,0.00019985,2]
[360687985,1746929453247,-400.0,0.00019985,2]
[360687986,1746929453256,-486.0,0.00019985,2]
[360687987,1746929453266,-400.0,0.00019985,2]
[360687988,1746929453276,-400.0,0.00019985,2]
[360687989,1746929453285,-415.77115238,0.00019985,2]
[360687990,1746929453294,-400.0,0.00019985,2]
[360687991,1746929453303,-417.74135623,0.00019985,2]
[360687992,1746929453313,-400.0,0.00019985,2]
[360687993,1746929453322,-484.47906853,0.00019985,2]
[360687994,1746929453331,-400.0,0.00019985,2]
[360687995,1746929453341,-400.0,0.00019985,2]
[360687996,1746929453351,-256.48468514,0.00019985,2]
[360687997,1746929453360,-400.0,0.00019985,2]
[360687998,1746929453370,-407.81973218,0.00019985,2]
[360687999,1746929453380,-432.05105305,0.00019985,2]
[360688000,1746929453390,-400.0,0.00019985,2]
[360688001,1746929453399,-428.74276062,0.00019985,2]
[360688002,1746929453409,-400.0,0.00019985,2]
[360688003,1746929453418,-400.0,0.00019985,2]
[360688004,1746929453427,-400.0,0.00019985,2]
[360688005,1746929453438,-400.0,0.00019985,2]
[360688006,1746929453448,-431.44456797,0.00019985,2]
[360688007,1746929453458,-400.0,0.00019985,2]
[360688008,1746929453468,-400.0,0.00019985,2]
[360688009,1746929453477,-400.0,0.00019985,2]
[360688010,1746929453488,-400.0,0.00019985,2]
[360688011,1746929453500,-400.0,0.00019985,2]
[360688012,1746929453509,-410.63676288,0.00019985,2]
[360688013,1746929453518,-400.0,0.00019985,2]
[360688014,1746929453528,-400.0,0.00019985,2]
[360688015,1746929453540,-539.05727827,0.00019985,2]
[360688016,1746929453549,-400.0,0.00019985,2]
[360688017,1746929453559,-400.0,0.00019985,2]
[360688018,1746929453570,-400.0,0.00019985,2]
[360688019,1746929453579,-400.0,0.00019985,2]
[360688020,1746929453588,-400.0,0.00019985,2]
[360688021,1746929453597,-419.50678262,0.00019985,2]
[360688022,1746929453607,-424.45185277,0.00019985,2]
[360688023,1746929453616,-400.0,0.00019985,2]
[360688024,1746929453626,-400.0,0.00019985,2]
[360688025,1746929453635,-400.0,0.00019985,2]
[360688026,1746929453647,-400.0,0.00019985,2]
[360688027,1746929453656,-400.0,0.00019985,2]
[360688028,1746929453666,-400.0,0.00019985,2]
[360688029,1746929453675,-401.61234276,0.00019985,2]
[360688030,1746929453686,-400.0,0.00019985,2]
[360688031,1746929453695,-400.0,0.00019985,2]
[360688032,1746929453705,-586.11,0.00019985,2]
[360688033,1746929453714,-535.49,0.00019985,2]
[360688034,1746929453723,-400.0,0.00019985,2]
[360688035,1746929453732,-400.0,0.00019985,2]
[360688036,1746929453742,-400.0,0.00019985,2]
[360688037,1746929453751,-411.24,0.00019985,2]
[360688038,1746929453760,-400.0,0.00019985,2]
[360688039,1746929453770,-400.0,0.00019985,2]
[360688040,1746929453779,-183.44859753,0.00019985,2]
[360688041,1746929453788,-445.05549792,0.00019985,2]
[360688042,1746929453798,-329.3977141,0.00019985,2]
[360688043,1746929453807,-400.0,0.00019985,2]
[360688044,1746929453817,-430.40931559,0.00019985,2]
[360688045,1746929453827,-400.0,0.00019985,2]
[360688046,1746929453839,-439.91104631,0.00019985,2]
[360688047,1746929453849,-400.0,0.00019985,2]
[360688048,1746929453858,-285.45959089,0.00019985,2]
[360688049,1746929453868,-400.0,0.00019985,2]
[360688050,1746929453878,-469.47017069,0.00019985,2]
[360688051,1746929453888,-350.73663312,0.00019985,2]
[360688052,1746929453897,-400.0,0.00019985,2]
[360688053,1746929453907,-400.0,0.00019985,2]
[360688054,1746929453917,-400.0,0.00019985,2]
[360688055,1746929453926,-400.0,0.00019985,2]
[360688056,1746929453938,-154.27685645,0.00019985,2]
[360688057,1746929453948,-400.0,0.00019985,2]
[360688058,1746929453957,-400.0,0.00019985,2]
[360688059,1746929453967,-400.0,0.00019985,2]
[360688060,1746929453977,-400.0,0.00019985,2]
[360688061,1746929453987,-400.0,0.00019985,2]
[360688062,1746929453996,-411.61,0.00019985,2]
[360688063,1746929454007,-400.0,0.00019985,2]
[360688064,1746929454016,-400.0,0.00019985,2]
[360688065,1746929454026,-203.93197375,0.00019985,2]
[360688066,1746929454036,-400.0,0.00019985,2]
[360688067,1746929454046,-490.87886885,0.00019985,2]
[360688068,1746929454056,-288.61191518,0.00019985,2]
[360688069,1746929454066,-1130.75,0.00019985,2]
[360688070,1746929454076,-374.86484731,0.00019985,2]
[360688071,1746929454086,-317.08,0.00019985,2]
[360688072,1746929454096,-500.0,0.00019985,2]
[360688073,1746929454105,-400.0,0.00019985,2]
[360688074,1746929454115,-400.0,0.00019985,2]
[360688075,1746929454125,-400.0,0.00019985,2]
[360688076,1746929454136,-240.034157,0.00019985,2]
[360688077,1746929454146,-380.0,0.00019985,2]
[360688078,1746929454155,-400.0,0.00019985,2]
[360688079,1746929454166,-240.034157,0.00019985,2]
[360688080,1746929454175,-1374.67,0.00019985,2]
[360688081,1746929454186,-241.55604427,0.00019985,2]
[360688082,1746929454195,-156.69246144,0.00019985,2]
[360688083,1746929454205,-400.0,0.00019985,2]
[360688084,1746929454215,-400.0,0.00019985,2]
[360688085,1746929454225,-266.91,0.00019985,2]
[360688086,1746929454235,-195.4503008,0.00019985,2]
[360688087,1746929454245,-495.77,0.00019985,2]
[360688088,1746929454255,-400.0,0.00019985,2]
[360688089,1746929454264,-400.0,0.00019985,2]
[360688090,1746929454274,-242.7455019,0.00019985,2]
[360688091,1746929454284,-162.46627,0.00019985,2]
[360688092,1746929454294,-554.07,0.00019985,2]
[360688093,1746929454304,-400.0,0.00019985,2]
[360688094,1746929454313,-400.0,0.00019985,2]
[360688095,1746929454323,-485.1647804,0.00019985,2]
[360688096,1746929454332,-252.518632,0.00019985,2]
[360688097,1746929454342,-400.0,0.00019985,2]
[360688098,1746929454352,-246.8227624,0.00019985,2]
[360688099,1746929454363,-400.0,0.00019985,2]
[360688100,1746929454372,-400.0,0.00019985,2]
[360688101,1746929454382,-400.0,0.00019985,2]
[360688102,1746929454391,-400.0,0.00019985,2]
[360688103,1746929454401,-437.67788653,0.00019985,2]
[360688104,1746929454411,-400.0,0.00019985,2]
[360688105,1746929454421,-400.0,0.00019985,2]
[360688106,1746929454431,-241.02188542,0.00019985,2]
[360688107,1746929454440,-222.93977312,0.00019985,2]
[360688108,1746929454450,-512.94,0.00019985,2]
[360688109,1746929454460,-399.33342095,0.00019985,2]
[360688110,1746929454469,-400.0,0.00019985,2]
[360688111,1746929454479,-186.49430053,0.00019985,2]
[360688112,1746929454490,-400.0,0.00019985,2]
[360688113,1746929454503,-400.0,0.00019985,2]
[360688114,1746929454512,-400.0,0.00019985,2]
[360688115,1746929454522,-400.0,0.00019985,2]
[360688116,1746929454531,-258.4218234,0.00019985,2]
[360688117,1746929454542,-400.0,0.00019985,2]
[360688118,1746929454552,-271.64102392,0.00019985,2]
[360688119,1746929454561,-435.15859248,0.00019985,2]
[360688120,1746929454572,-197.25381994,0.00019985,2]
[360688121,1746929454582,-1215.92,0.00019985,2]
[360688122,1746929454592,-194.97332732,0.00019985,2]
[360688123,1746929454601,-400.0,0.00019985,2]
[360688124,1746929454610,-486.4346118,0.00019985,2]
[360688125,1746929454620,-400.0,0.00019985,2]
[360688126,1746929454629,-530.76212839,0.00019985,2]
[360688127,1746929454638,-400.0,0.00019985,2]
[360688128,1746929454647,-400.0,0.00019985,2]
[360688129,1746929454657,-151.0,0.00019985,2]
[360688130,1746929454666,-400.0,0.00019985,2]
[360688131,1746929454675,-400.0,0.00019985,2]
[360688132,1746929454685,-429.27547567,0.00019985,2]
[360688133,1746929454694,-151.0,0.00019985,2]
[360688134,1746929454703,-400.0,0.00019985,2]
[360688135,1746929454713,-400.0,0.00019985,2]
[360688136,1746929454722,-400.0,0.00019985,2]
[360688137,1746929454732,-400.0,0.00019985,2]
[360688138,1746929454742,-236.604334,0.00019985,2]
[360688139,1746929454751,-156.176386,0.00019985,2]
[360688140,1746929454761,-400.0,0.00019985,2]
[360688141,1746929454771,-154.563795,0.00019985,2]
[360688142,1746929454780,-184.0466709,0.00019985,2]
[360688143,1746929454789,-400.0,0.00019985,2]
[360688144,1746929454799,-400.0,0.00019985,2]
[360688145,1746929454808,-400.0,0.00019985,2]
[360688146,1746929454818,-438.09158144,0.00019985,2]
[360688147,1746929454827,-157.438599,0.00019985,2]
[360688148,1746929454836,-383.18593792,0.00019985,2]
[360688149,1746929454845,-400.0,0.00019985,2]
[360688150,1746929454854,-400.0,0.00019985,2]
[360688151,1746929454863,-400.0,0.00019985,2]
[360688152,1746929454872,-22278.8,0.00019985,2]
[360688153,1746929454883,-151.0,0.00019985,2]
[360688154,1746929454892,-400.0,0.00019985,2]
[360688155,1746929454902,-498.3833925,0.00019985,2]
[360688156,1746929454911,-400.0,0.00019985,2]
[360688157,1746929454920,-363.2306832,0.00019985,2]
[360688158,1746929454930,-883.22,0.00019985,2]
[360688159,1746929454940,-400.0,0.00019985,2]
[360688160,1746929454949,-400.0,0.00019985,2]
[360688161,1746929454959,-400.0,0.00019985,2]
[360688162,1746929454970,-455.54,0.00019985,2]
[360688163,1746929454980,-151.0,0.00019985,2]
[360688164,1746929454989,-400.0,0.00019985,2]
[360688165,1746929454999,-400.0,0.00019985,2]
[360688166,1746929455009,-416.2925429,0.00019985,2]
[360688167,1746929455018,-400.0,0.00019985,2]
[360688168,1746929455028,-400.0,0.00019985,2]
[360688169,1746929455037,-400.0,0.00019985,2]
[360688170,1746929455047,-400.0,0.00019985,2]
[360688171,1746929455057,-400.0,0.00019985,2]
[360688172,1746929455066,-400.0,0.00019985,2]
[360688173,1746929455076,-400.0,0.00019985,2]
[360688174,1746929455086,-400.0,0.00019985,2]
[360688175,1746929455096,-410.34185449,0.00019985,2]
[360688176,1746929455106,-400.0,0.00019985,2]
[360688177,1746929455115,-292.56487293,0.00019985,2]
[360688178,1746929455124,-166.378399,0.00019985,2]
[360688179,1746929455135,-400.0,0.00019985,2]
[360688180,1746929455144,-400.0,0.00019985,2]
[360688181,1746929455154,-400.0,0.00019985,2]
[360688182,1746929455164,-400.0,0.00019985,2]
[360688183,1746929455174,-166.378399,0.00019985,2]
[360688184,1746929455184,-400.0,0.00019985,2]
[360688185,1746929455193,-475.61120329,0.00019985,2]
[360688186,1746929455203,-400.0,0.00019985,2]
[360688187,1746929455213,-415.53,0.00019985,2]
[360688188,1746929455223,-400.0,0.00019985,2]
[360688189,1746929455233,-439.7239682,0.00019985,2]
[360688190,1746929455243,-400.0,0.00019985,2]
[360688191,1746929455253,-400.0,0.00019985,2]
[360688192,1746929455264,-400.0,0.00019985,2]
[360688193,1746929455274,-151.3744,0.00019985,2]
[360688194,1746929455284,-400.0,0.00019985,2]
[360688195,1746929455294,-510.14,0.00019985,2]
[360688196,1746929455304,-520.01802168,0.00019985,2]
[360688197,1746929455314,-151.0,0.00019985,2]
[360688198,1746929455323,-400.0,0.00019985,2]
[360688199,1746929455333,-400.0,0.00019985,2]
[360688200,1746929455343,-400.0,0.00019985,2]
[360688201,1746929455352,-404.34687442,0.00019985,2]
[360688202,1746929455362,-400.0,0.00019985,2]
[360688203,1746929455372,-400.0,0.00019985,2]
[360688204,1746929455383,-400.0,0.00019985,2]
[360688205,1746929455394,-151.0,0.00019985,2]
[360688206,1746929455404,-400.0,0.00019985,2]
[360688207,1746929455414,-400.0,0.00019985,2]
[360688208,1746929455424,-400.0,0.00019985,2]
[360688209,1746929455434,-400.0,0.00019985,2]
[360688210,1746929455444,-163.669603,0.00019985,2]
[360688211,1746929455453,-400.0,0.00019985,2]
[360688212,1746929455463,-391.9,0.00019985,2]
[360688213,1746929455474,-400.0,0.00019985,2]
[360688214,1746929455484,-500.0,0.00019985,2]
[360688215,1746929455496,-400.0,0.00019985,2]
[360688216,1746929455506,-404.76199965,0.00019985,2]
[360688217,1746929455516,-400.0,0.00019985,2]
[360688218,1746929455526,-464.54,0.00019985,2]
[360688219,1746929455538,-400.0,0.00019985,2]
[360688220,1746929455548,-400.0,0.00019985,2]
[360688221,1746929455558,-400.0,0.00019985,2]
[360688222,1746929455569,-400.0,0.00019985,2]
[360688223,1746929455579,-400.0,0.00019985,2]
[360688224,1746929455590,-339.2469984,0.00019985,2]
[360688225,1746929455600,-400.0,0.00019985,2]
[360688226,1746929455610,-1799.822809,0.00019985,2]
[360688227,1746929455620,-672.34,0.00019985,2]
[360688228,1746929455630,-400.0,0.00019985,2]
[360688229,1746929455639,-494.69,0.00019985,2]
[360688230,1746929455649,-1799.822809,0.00019985,2]
[360688231,1746929455659,-400.0,0.00019985,2]
[360688232,1746929455669,-400.0,0.00019985,2]
[360688233,1746929455679,-400.0,0.00019985,2]
[360688234,1746929455692,-400.0,0.00019985,2]
[360688235,1746929455702,-400.0,0.00019985,2]
[360688236,1746929455711,-400.0,0.00019985,2]
[360688237,1746929455721,-422.467261,0.00019985,2]
[360688238,1746929455731,-151.0,0.00019985,2]
[360688239,1746929455741,-400.0,0.00019985,2]
[360688240,1746929455751,-400.0,0.00019985,2]
[360688241,1746929455761,-422.467261,0.00019985,2]
[360688242,1746929455771,-1677.61,0.00019985,2]
[360688243,1746929455780,-450.0,0.00019985,2]
[360688244,1746929455790,-151.0,0.00019985,2]
[360688245,1746929455800,-400.0,0.00019985,2]
[360688246,1746929455809,-400.0,0.00019985,2]
[360688247,1746929455819,-400.0,0.00019985,2]
[360688248,1746929455828,-400.0,0.00019985,2]
[360688249,1746929455838,-152.79834,0.00019985,2]
[360688250,1746929455847,-373.8722471,0.00019985,2]
[360688251,1746929455857,-400.0,0.00019985,2]
[360688252,1746929455867,-400.0,0.00019985,2]
[360688253,1746929455877,-151.0,0.00019985,2]
[360688254,1746929455887,-400.0,0.00019985,2]
[360688255,1746929455897,-1969.27,0.00019985,2]
[360688256,1746929455908,-400.0,0.00019985,2]
[360688257,1746929455918,-151.0,0.00019985,2]
[360688258,1746929455928,-400.0,0.00019985,2]
[360688259,1746929455939,-400.0,0.00019985,2]
[360688260,1746929455949,-151.0,0.00019985,2]
[360688261,1746929455960,-655.17,0.00019985,2]
[360688262,1746929455970,-400.0,0.00019985,2]
[360688263,1746929455980,-425.39,0.00019985,2]
[360688264,1746929455991,-400.0,0.00019985,2]
[360688265,1746929456001,-151.0,0.00019985,2]
[360688266,1746929456011,-930.04,0.00019985,2]
[360688267,1746929456021,-400.0,0.00019985,2]
[360688268,1746929456031,-400.0,0.00019985,2]
[360688269,1746929456041,-436.82,0.00019985,2]
[360688270,1746929456051,-400.0,0.00019985,2]
[360688271,1746929456060,-153.706983,0.00019985,2]
[360688272,1746929456070,-400.0,0.00019985,2]
[360688273,1746929456080,-3740.71,0.00019985,2]
[360688274,1746929456091,-151.0,0.00019986,2]